Workbook

Sheet Sheet1
A1: فبراير 28 | B1: فبراير 29 | C1: مارس 31 | E1: قاسم | M1: أبو أحمد
A2: 2023-02-01 | B2: 2024-02-01 | C2: 2023-03-01 | E2: =dT(DATE(2023,2,1),A2) -> 0 | F2: =dT(DATE(2024,2,1),B2) -> 0 | G2: =dT(DATE(2023,3,1),C2) -> 0 | I2: =1000/30*E2 -> 0 | J2: =1000/30*F2 -> 0 | K2: 0 | M2: =GetDays360(DATE(2023,2,1),A2) -> 1.071428571 | N2: =GetDays360(DATE(2024,2,1),B2) -> 1.034482759 | O2: =GetDays360(DATE(2023,3,1),C2) -> 0.9677419355 | Q2: =1000/30*M2 -> 35.71428571 | R2: =1000/30*N2 -> 34.48275862 | S2: 32.25806452
A3: 2023-02-02 | B3: 2024-02-02 | C3: 2023-03-02 | E3: =dT(DATE(2023,2,1),A3) -> 1 | F3: =dT(DATE(2024,2,1),B3) -> 1 | G3: =dT(DATE(2023,3,1),C3) -> 1 | I3: =1000/30*E3 -> 33.33333333 | J3: =1000/30*F3 -> 33.33333333 | K3: =1000/30*G3 -> 33.33333333 | M3: =GetDays360(DATE(2023,2,1),A3) -> 2.142857143 | N3: =GetDays360(DATE(2024,2,1),B3) -> 2.068965517 | O3: =GetDays360(DATE(2023,3,1),C3) -> 1.935483871 | Q3: =1000/30*M3 -> 71.42857143 | R3: =1000/30*N3 -> 68.96551724 | S3: =1000/30*O3 -> 64.51612903
A4: 2023-02-03 | B4: 2024-02-03 | C4: 2023-03-03 | E4: 2 | F4: 2 | G4: 2 | I4: 66.66666667 | J4: 66.66666667 | K4: 66.66666667 | M4: =GetDays360(DATE(2023,2,1),A4) -> 3.214285714 | N4: =GetDays360(DATE(2024,2,1),B4) -> 3.103448276 | O4: 2.903225806 | Q4: 107.1428571 | R4: 103.4482759 | S4: 96.77419355 | U4: توجد حسابات أخرى في الصفحة الثانية
A5: 2023-02-04 | B5: 2024-02-04 | C5: 2023-03-04 | E5: 3 | F5: 3 | G5: 3 | I5: 100 | J5: 100 | K5: 100 | M5: =GetDays360(DATE(2023,2,1),A5) -> 4.285714286 | N5: =GetDays360(DATE(2024,2,1),B5) -> 4.137931034 | O5: 3.870967742 | Q5: 142.8571429 | R5: 137.9310345 | S5: 129.0322581
A6: 2023-02-05 | B6: 2024-02-05 | C6: 2023-03-05 | E6: 4 | F6: 4 | G6: 4 | I6: 133.3333333 | J6: 133.3333333 | K6: 133.3333333 | M6: =GetDays360(DATE(2023,2,1),A6) -> 5.357142857 | N6: =GetDays360(DATE(2024,2,1),B6) -> 5.172413793 | O6: 4.838709677 | Q6: 178.5714286 | R6: 172.4137931 | S6: 161.2903226
A7: 2023-02-06 | B7: 2024-02-06 | C7: 2023-03-06 | E7: 5 | F7: 5 | G7: 5 | I7: 166.6666667 | J7: 166.6666667 | K7: 166.6666667 | M7: =GetDays360(DATE(2023,2,1),A7) -> 6.428571429 | N7: =GetDays360(DATE(2024,2,1),B7) -> 6.206896552 | O7: 5.806451613 | Q7: 214.2857143 | R7: 206.8965517 | S7: 193.5483871
A8: 2023-02-07 | B8: 2024-02-07 | C8: 2023-03-07 | E8: 6 | F8: 6 | G8: 6 | I8: 200 | J8: 200 | K8: 200 | M8: =GetDays360(DATE(2023,2,1),A8) -> 7.5 | N8: =GetDays360(DATE(2024,2,1),B8) -> 7.24137931 | O8: 6.774193548 | Q8: 250 | R8: 241.3793103 | S8: 225.8064516
A9: 2023-02-08 | B9: 2024-02-08 | C9: 2023-03-08 | E9: 7 | F9: 7 | G9: 7 | I9: 233.3333333 | J9: 233.3333333 | K9: 233.3333333 | M9: =GetDays360(DATE(2023,2,1),A9) -> 8.571428571 | N9: =GetDays360(DATE(2024,2,1),B9) -> 8.275862069 | O9: 7.741935484 | Q9: 285.7142857 | R9: 275.862069 | S9: 258.0645161
A10: 2023-02-09 | B10: 2024-02-09 | C10: 2023-03-09 | E10: 8 | F10: 8 | G10: 8 | I10: 266.6666667 | J10: 266.6666667 | K10: 266.6666667 | M10: =GetDays360(DATE(2023,2,1),A10) -> 9.642857143 | N10: =GetDays360(DATE(2024,2,1),B10) -> 9.310344828 | O10: 8.709677419 | Q10: 321.4285714 | R10: 310.3448276 | S10: 290.3225806
A11: 2023-02-10 | B11: 2024-02-10 | C11: 2023-03-10 | E11: 9 | F11: 9 | G11: 9 | I11: 300 | J11: 300 | K11: 300 | M11: =GetDays360(DATE(2023,2,1),A11) -> 10.71428571 | N11: =GetDays360(DATE(2024,2,1),B11) -> 10.34482759 | O11: 9.677419355 | Q11: 357.1428571 | R11: 344.8275862 | S11: 322.5806452
A12: 2023-02-11 | B12: 2024-02-11 | C12: 2023-03-11 | E12: 10 | F12: 10 | G12: 10 | I12: 333.3333333 | J12: 333.3333333 | K12: 333.3333333 | M12: =GetDays360(DATE(2023,2,1),A12) -> 11.78571429 | N12: =GetDays360(DATE(2024,2,1),B12) -> 11.37931034 | O12: 10.64516129 | Q12: 392.8571429 | R12: 379.3103448 | S12: 354.8387097
A13: 2023-02-12 | B13: 2024-02-12 | C13: 2023-03-12 | E13: 11 | F13: 11 | G13: 11 | I13: 366.6666667 | J13: 366.6666667 | K13: 366.6666667 | M13: =GetDays360(DATE(2023,2,1),A13) -> 12.85714286 | N13: =GetDays360(DATE(2024,2,1),B13) -> 12.4137931 | O13: 11.61290323 | Q13: 428.5714286 | R13: 413.7931034 | S13: 387.0967742
A14: 2023-02-13 | B14: 2024-02-13 | C14: 2023-03-13 | E14: 12 | F14: 12 | G14: 12 | I14: 400 | J14: 400 | K14: 400 | M14: =GetDays360(DATE(2023,2,1),A14) -> 13.92857143 | N14: =GetDays360(DATE(2024,2,1),B14) -> 13.44827586 | O14: 12.58064516 | Q14: 464.2857143 | R14: 448.2758621 | S14: 419.3548387
A15: 2023-02-14 | B15: 2024-02-14 | C15: 2023-03-14 | E15: 13 | F15: 13 | G15: 13 | I15: 433.3333333 | J15: 433.3333333 | K15: 433.3333333 | M15: =GetDays360(DATE(2023,2,1),A15) -> 15 | N15: =GetDays360(DATE(2024,2,1),B15) -> 14.48275862 | O15: 13.5483871 | Q15: 500 | R15: 482.7586207 | S15: 451.6129032
A16: 2023-02-15 | B16: 2024-02-15 | C16: 2023-03-15 | E16: 14 | F16: 14 | G16: 14 | I16: 466.6666667 | J16: 466.6666667 | K16: 466.6666667 | M16: =GetDays360(DATE(2023,2,1),A16) -> 16.07142857 | N16: =GetDays360(DATE(2024,2,1),B16) -> 15.51724138 | O16: 14.51612903 | Q16: 535.7142857 | R16: 517.2413793 | S16: 483.8709677
A17: 2023-02-16 | B17: 2024-02-16 | C17: 2023-03-16 | E17: 15 | F17: 15 | G17: 15 | I17: 500 | J17: 500 | K17: 500 | M17: =GetDays360(DATE(2023,2,1),A17) -> 17.14285714 | N17: =GetDays360(DATE(2024,2,1),B17) -> 16.55172414 | O17: 15.48387097 | Q17: 571.4285714 | R17: 551.7241379 | S17: 516.1290323
A18: 2023-02-17 | B18: 2024-02-17 | C18: 2023-03-17 | E18: 16 | F18: 16 | G18: 16 | I18: 533.3333333 | J18: 533.3333333 | K18: 533.3333333 | M18: =GetDays360(DATE(2023,2,1),A18) -> 18.21428571 | N18: =GetDays360(DATE(2024,2,1),B18) -> 17.5862069 | O18: 16.4516129 | Q18: 607.1428571 | R18: 586.2068966 | S18: 548.3870968
A19: 2023-02-18 | B19: 2024-02-18 | C19: 2023-03-18 | E19: 17 | F19: 17 | G19: 17 | I19: 566.6666667 | J19: 566.6666667 | K19: 566.6666667 | M19: =GetDays360(DATE(2023,2,1),A19) -> 19.28571429 | N19: =GetDays360(DATE(2024,2,1),B19) -> 18.62068966 | O19: 17.41935484 | Q19: 642.8571429 | R19: 620.6896552 | S19: 580.6451613
A20: 2023-02-19 | B20: 2024-02-19 | C20: 2023-03-19 | E20: 18 | F20: 18 | G20: 18 | I20: 600 | J20: 600 | K20: 600 | M20: =GetDays360(DATE(2023,2,1),A20) -> 20.35714286 | N20: =GetDays360(DATE(2024,2,1),B20) -> 19.65517241 | O20: 18.38709677 | Q20: 678.5714286 | R20: 655.1724138 | S20: 612.9032258
A21: 2023-02-20 | B21: 2024-02-20 | C21: 2023-03-20 | E21: 19 | F21: 19 | G21: 19 | I21: 633.3333333 | J21: 633.3333333 | K21: 633.3333333 | M21: =GetDays360(DATE(2023,2,1),A21) -> 21.42857143 | N21: =GetDays360(DATE(2024,2,1),B21) -> 20.68965517 | O21: 19.35483871 | Q21: 714.2857143 | R21: 689.6551724 | S21: 645.1612903
A22: 2023-02-21 | B22: 2024-02-21 | C22: 2023-03-21 | E22: 20 | F22: 20 | G22: 20 | I22: 666.6666667 | J22: 666.6666667 | K22: 666.6666667 | M22: =GetDays360(DATE(2023,2,1),A22) -> 22.5 | N22: =GetDays360(DATE(2024,2,1),B22) -> 21.72413793 | O22: 20.32258065 | Q22: 750 | R22: 724.137931 | S22: 677.4193548
A23: 2023-02-22 | B23: 2024-02-22 | C23: 2023-03-22 | E23: 21 | F23: 21 | G23: 21 | I23: 700 | J23: 700 | K23: 700 | M23: =GetDays360(DATE(2023,2,1),A23) -> 23.57142857 | N23: =GetDays360(DATE(2024,2,1),B23) -> 22.75862069 | O23: 21.29032258 | Q23: 785.7142857 | R23: 758.6206897 | S23: 709.6774194
A24: 2023-02-23 | B24: 2024-02-23 | C24: 2023-03-23 | E24: 22 | F24: 22 | G24: 22 | I24: 733.3333333 | J24: 733.3333333 | K24: 733.3333333 | M24: =GetDays360(DATE(2023,2,1),A24) -> 24.64285714 | N24: =GetDays360(DATE(2024,2,1),B24) -> 23.79310345 | O24: 22.25806452 | Q24: 821.4285714 | R24: 793.1034483 | S24: 741.9354839
A25: 2023-02-24 | B25: 2024-02-24 | C25: 2023-03-24 | E25: 23 | F25: 23 | G25: 23 | I25: 766.6666667 | J25: 766.6666667 | K25: 766.6666667 | M25: =GetDays360(DATE(2023,2,1),A25) -> 25.71428571 | N25: =GetDays360(DATE(2024,2,1),B25) -> 24.82758621 | O25: 23.22580645 | Q25: 857.1428571 | R25: 827.5862069 | S25: 774.1935484
A26: 2023-02-25 | B26: 2024-02-25 | C26: 2023-03-25 | E26: 24 | F26: 24 | G26: 24 | I26: 800 | J26: 800 | K26: 800 | M26: =GetDays360(DATE(2023,2,1),A26) -> 26.78571429 | N26: =GetDays360(DATE(2024,2,1),B26) -> 25.86206897 | O26: 24.19354839 | Q26: 892.8571429 | R26: 862.0689655 | S26: 806.4516129
A27: 2023-02-26 | B27: 2024-02-26 | C27: 2023-03-26 | E27: 25 | F27: 25 | G27: 25 | I27: 833.3333333 | J27: 833.3333333 | K27: 833.3333333 | M27: =GetDays360(DATE(2023,2,1),A27) -> 27.85714286 | N27: =GetDays360(DATE(2024,2,1),B27) -> 26.89655172 | O27: 25.16129032 | Q27: 928.5714286 | R27: 896.5517241 | S27: 838.7096774
A28: 2023-02-27 | B28: 2024-02-27 | C28: 2023-03-27 | E28: 26 | F28: 26 | G28: 26 | I28: 866.6666667 | J28: 866.6666667 | K28: 866.6666667 | M28: =GetDays360(DATE(2023,2,1),A28) -> 28.92857143 | N28: =GetDays360(DATE(2024,2,1),B28) -> 27.93103448 | O28: 26.12903226 | Q28: 964.2857143 | R28: 931.0344828 | S28: 870.9677419
A29: 2023-02-28 | B29: 2024-02-28 | C29: 2023-03-28 | E29: 27 | F29: 27 | G29: 27 | I29: 900 | J29: 900 | K29: 900 | M29: =GetDays360(DATE(2023,2,1),A29) -> 30 | N29: =GetDays360(DATE(2024,2,1),B29) -> 28.96551724 | O29: 27.09677419 | Q29: 1000 | R29: 965.5172414 | S29: 903.2258065
B30: 2024-02-29 | C30: 2023-03-29 | F30: 28 | G30: 28 | J30: 933.3333333 | K30: 933.3333333 | N30: =GetDays360(DATE(2024,2,1),B30) -> 30 | O30: 28.06451613 | R30: 1000 | S30: 935.483871
C31: 2023-03-30 | G31: 29 | K31: 966.6666667 | O31: 29.03225806 | S31: 967.7419355
C32: 2023-03-31 | G32: 30 | K32: 1000 | O32: 30 | S32: 1000

Sheet Sheet2
A1: من | B1: إلى | D1: قاسم | E1: أبو أحمد | F1: الفرق
A2: 2023-02-01 | B2: 2023-02-14 | D2: =dT(A2,B2) -> 13 | E2: =GetDays360(A2,B2) -> 15 | F2: =E2-D2 -> 2
A3: =B2+1 -> 2023-02-15 | B3: 2023-03-15 | D3: =dT(A3,B3) -> 30 | E3: =GetDays360(A3,B3) -> 29.51612903 | F3: =E3-D3 -> -0.4838709677
A4: =B3+1 -> 2023-03-16 | B4: 2023-04-15 | D4: 29 | E4: 30.48387097 | F4: 1.483870968
A5: =B4+1 -> 2023-04-16 | B5: 2023-05-15 | D5: 29 | E5: 29.51612903 | F5: 0.5161290323
A6: 2023-05-16 | B6: 2023-06-15 | D6: 29 | E6: 30.48387097 | F6: 1.483870968
A7: 2023-06-16 | B7: 2023-07-15 | D7: 29 | E7: 29.51612903 | F7: 0.5161290323
A8: 2023-07-16 | B8: 2023-08-15 | D8: 29 | E8: 30 | F8: 1
A9: 2023-08-16 | B9: 2023-09-15 | D9: 29 | E9: 30.48387097 | F9: 1.483870968
A10: 2023-09-16 | B10: 2023-10-15 | D10: 29 | E10: 29.51612903 | F10: 0.5161290323
A11: 2023-10-16 | B11: 2023-11-15 | D11: 29 | E11: 30.48387097 | F11: 1.483870968
A12: 2023-11-16 | B12: 2023-12-15 | D12: 29 | E12: 29.51612903 | F12: 0.5161290323
A13: 2023-12-16 | B13: 2024-01-15 | D13: 29 | E13: 30 | F13: 1
A14: 2024-01-16 | B14: 2024-02-15 | D14: 29 | E14: 31.00111235 | F14: 2.001112347
A15: =B14-A2+1 -> 380 | B15: =A15/365*360 -> 374.7945205 | D15: =SUM(D2:D14) -> 362 | E15: 375.5172414 | F15: 13.51724138
